[Event "Asian Amateur-ch Open 2022"]
[Site "Muscat"]
[Date "2022.10.02"]
[Round "5.12"]
[White "Ferzli, Dany Michael"]
[Black "Hamdan Edrees, Alhamed"]
[Result "0-1"]
[ECO "E63"]
[WhiteElo "1789"]
[BlackElo "1467"]
[Annotator "NA RC COMBH"]
[PlyCount "114"]
[EventDate "2022.09.29"]
[EventType "swiss"]
[SourceTitle "playchess.com"]
[Source "ChessBase"]
[SourceQuality "1"]
[TimeControl "5400+30"]

1. d4 {[%emt 0:00:04]} Nf6 {[%emt 0:00:04]} 2. Nf3 {[%emt 0:00:08]} d6 {[%emt 0:00:05]} 3. c4 {[%emt 0:00:06]} g6 {[%emt 0:00:04]} 4. g3 {[%emt 0:00:06]} Bg7 {[%emt 0:00:05]} 5. Bg2 {[%emt 0:00:05]} O-O {[%emt 0:00:07]} 6. O-O {[%emt 0:00:04]} Nc6 {[%emt 0:00:54]} 7. Nc3 {[%emt 0:01:25]} a6 {[%emt 0:01:56]} 8. e4 {[%emt 0:02:20]} Bg4 {[%emt 0:00:47]} 9. h3 {[%emt 0:07:13]} Bxf3 {[%emt 0:03:58]} 10. Bxf3 {[%emt 0:00:12]} e5 {[%emt 0:00:05]} 11. d5 {[%emt 0:03:43]} Nd4 {[%emt 0:00:07]} 12. Bg2 {[%emt 0:01:08]} Nd7 {[%emt 0:01:57]} 13. Be3 {[%emt 0:03:46]} f5 {[%emt 0:01:11]} 14. Bxd4 {[%emt 0:06:15]} exd4 {[%emt 0:00:31]} 15. Ne2 {[%emt 0:00:09]} Qf6 {[%emt 0:00:41]} 16. Nf4 {[%emt 0:02:23]} Nc5 {[%emt 0:00:24]} 17. f3 {[%emt 0:03:42]} Qg5 {[%emt 0:03:05]} 18. b4 {[%emt 0:08:15]} Be5 {[%emt 0:03:18]} 19. Qe1 {[%emt 0:08:18]} Nd7 {[%emt 0:05:40]} 20. Ne6 {[%emt 0:00:50]} Qe3+ {[%emt 0:00:34]} 21. Qxe3 {[%emt 0:04:48]} dxe3 {[%emt 0:00:09]} 22. Nxf8 {[%emt 0:01:35]} Rxf8 {[%emt 0:00:08]} 23. Rae1 {[%emt 0:05:43]} Bc3 {[%emt 0:00:22]} 24. Re2 {[%emt 0:00:29]} Bxb4 {[%emt 0:02:21]} 25. Rb1 {[%emt 0:00:08]} Bc5 {[%emt 0:00:15]} 26. Rxb7 {[%emt 0:05:10]} Bb6 {[%emt 0:00:09]} 27. Rxb6 {[%emt 0:00:02]} cxb6 {[%emt 0:00:10]} 28. Rxe3 {[%emt 0:00:43]} f4 {[%emt 0:00:07]} 29. gxf4 {[%emt 0:00:24]} Rxf4 {[%emt 0:00:12]} 30. Rb3 {[%emt 0:02:26]} Kf7 {[%emt 0:00:10]} 31. a4 {[%emt 0:01:29]} a5 {[%emt 0:00:07]} 32. Kf2 {[%emt 0:00:34]} Ke7 {[%emt 0:00:09]} 33. Rb1 {[%emt 0:03:00]} Kd8 {[%emt 0:00:33]} 34. Bf1 {[%emt 0:02:28]} Kc7 {[%emt 0:00:41]} 35. Be2 {[%emt 0:00:06]} Nc5 {[%emt 0:00:13]} 36. Bd1 {[%emt 0:00:30]} g5 {[%emt 0:01:47]} 37. Bc2 {[%emt 0:00:18]} Nd7 {[%emt 0:00:09]} 38. Rg1 {[%emt 0:04:58]} h6 {[%emt 0:01:35]} 39. Rg4 {[%emt 0:00:19]} Ne5 {[%emt 0:00:51]} 40. Rxf4 {[%emt 0:00:58]} gxf4 {[%emt 0:00:09]} 41. Bb3 {[%emt 0:00:46]} Nd3+ {[%emt 0:00:24]} 42. Kf1 {[%emt 0:00:49]} Kd7 {[%emt 0:00:17]} 43. h4 {[%emt 0:05:11]} Ke7 {[%emt 0:00:37]} 44. Kg2 {[%emt 0:01:05]} Kf6 {[%emt 0:00:12]} 45. Ba2 {[%emt 0:01:05]} Ke5 {[%emt 0:00:58]} 46. Kf1 {[%emt 0:01:34]} Kd4 {[%emt 0:00:15]} 47. Bb3 {[%emt 0:02:54]} Nc5 {[%emt 0:01:44]} 48. Bd1 {[%emt 0:00:54]} Kxc4 {[%emt 0:00:09]} 49. Be2+ {[%emt 0:00:21]} Kd4 {[%emt 0:00:51]} 50. h5 {[%emt 0:01:04]} Nxa4 {[%emt 0:00:09]} 51. Kg2 {[%emt 0:00:35]} Nc3 {[%emt 0:00:12]} 52. Bd3 {[%emt 0:01:43]} a4 {[%emt 0:00:28]} 53. Bc2 {[%emt 0:00:14]} a3 {[%emt 0:00:06]} 54. Bb3 {[%emt 0:00:03]} a2 {[%emt 0:00:07]} 55. Bxa2 {[%emt 0:00:29]} Nxa2 {[%emt 0:00:07]} 56. Kh3 {[%emt 0:00:03]} b5 {[%emt 0:00:27]} 57. Kg4 {[%emt 0:00:06]} Ke5 {[%emt 0:00:13]} 0-1

[Event "Asian Amateur-ch Open 2022"]
[Site "Muscat"]
[Date "2022.10.02"]
[Round "5.13"]
[White "Al Zadjali, Abdul Rahman"]
[Black "Jaradat, Othman"]
[Result "1/2-1/2"]
[ECO "D36"]
[WhiteElo "1534"]
[BlackElo "1751"]
[Annotator "NA RC COMBH"]
[PlyCount "158"]
[EventDate "2022.09.29"]
[EventType "swiss"]
[SourceTitle "playchess.com"]
[Source "ChessBase"]
[SourceQuality "1"]
[TimeControl "5400+30"]

1. d4 {[%emt 0:00:04]} e6 {[%emt 0:00:09]} 2. c4 {[%emt 0:00:19]} d5 {[%emt 0:00:04]} 3. Nc3 {[%emt 0:00:14]} Nf6 {[%emt 0:00:05]} 4. cxd5 {[%emt 0:00:05]} exd5 {[%emt 0:00:06]} 5. Bg5 {[%emt 0:00:22]} Be7 {[%emt 0:00:43]} 6. e3 {[%emt 0:00:25]} c6 {[%emt 0:00:24]} 7. Bd3 {[%emt 0:00:20]} O-O {[%emt 0:00:41]} 8. Qc2 {[%emt 0:00:22]} Nbd7 {[%emt 0:00:33]} 9. Nf3 {[%emt 0:00:25]} Re8 {[%emt 0:01:05]} 10. O-O {[%emt 0:00:22]} Nf8 {[%emt 0:05:16]} 11. Rab1 {[%emt 0:01:15]} a5 {[%emt 0:02:31]} 12. a3 {[%emt 0:00:43]} Ne4 {[%emt 0:04:52]} 13. Bxe7 {[%emt 0:00:35]} Qxe7 {[%emt 0:00:58]} 14. Rfc1 {[%emt 0:03:43]} Nxc3 {[%emt 0:08:39]} 15. Qxc3 {[%emt 0:07:10]} Bg4 {[%emt 0:08:59]} 16. Nd2 {[%emt 0:07:03]} Ng6 {[%emt 0:08:04]} 17. b4 {[%emt 0:11:25]} axb4 {[%emt 0:00:23]} 18. axb4 {[%emt 0:00:04]} Ra4 {[%emt 0:17:10]} 19. Qc5 {[%emt 0:07:07]} Qg5 {[%emt 0:10:26]} 20. Qd6 {[%emt 0:12:51]} Rxe3 {[%emt 0:07:54]} 21. fxe3 {[%emt 0:01:31]} Qxe3+ {[%emt 0:00:15]} 22. Kh1 {[%emt 0:00:15]} Qxd2 {[%emt 0:05:30]} 23. Qd8+ {[%emt 0:03:51]} Nf8 {[%emt 0:01:54]} 24. Bxh7+ {[%emt 0:00:12]} Kxh7 {[%emt 0:00:29]} 25. Qh4+ {[%emt 0:00:15]} Kg8 {[%emt 0:01:16]} 26. Qxg4 {[%emt 0:00:02]} Rxb4 {[%emt 0:00:26]} 27. Rd1 {[%emt 0:02:22]} Rxb1 {[%emt 0:01:27]} 28. Rxb1 {[%emt 0:00:02]} Ne6 {[%emt 0:00:56]} 29. Rd1 {[%emt 0:06:17]} Qf2 {[%emt 0:02:00]} 30. h4 {[%emt 0:12:35]} b5 {[%emt 0:00:51]} 31. Ra1 {[%emt 0:00:55]} g6 {[%emt 0:03:06]} 32. Rd1 {[%emt 0:04:09]} b4 {[%emt 0:01:28]} 33. h5 {[%emt 0:01:27]} g5 {[%emt 0:01:08]} 34. Qf3 {[%emt 0:04:57]} Qxf3 {[%emt 0:01:48]} 35. gxf3 {[%emt 0:00:02]} b3 {[%emt 0:00:08]} 36. Kg2 {[%emt 0:01:30]} b2 {[%emt 0:03:24]} 37. Rb1 {[%emt 0:00:27]} Nxd4 {[%emt 0:00:25]} 38. Rxb2 {[%emt 0:00:11]} Ne6 {[%emt 0:00:27]} 39. Kg3 {[%emt 0:01:59]} c5 {[%emt 0:00:25]} 40. Kg4 {[%emt 0:00:46]} c4 {[%emt 0:00:44]} 41. Kf5 {[%emt 0:01:41]} c3 {[%emt 0:00:12]} 42. Rb8+ {[%emt 0:00:04]} Kg7 {[%emt 0:00:29]} 43. Rc8 {[%emt 0:00:51]} d4 {[%emt 0:02:40]} 44. h6+ {[%emt 0:00:49]} Kxh6 {[%emt 0:00:58]} 45. Kf6 {[%emt 0:00:02]} Kh7 {[%emt 0:00:28]} 46. Kxf7 {[%emt 0:00:15]} Nf4 {[%emt 0:00:40]} 47. Rc5 {[%emt 0:01:23]} d3 {[%emt 0:00:26]} 48. Rxc3 {[%emt 0:00:11]} d2 {[%emt 0:00:07]} 49. Rc2 {[%emt 0:00:12]} Nd3 {[%emt 0:01:15]} 50. Rxd2 {[%emt 0:00:17]} Ne5+ {[%emt 0:00:01]} 51. Kf6 {[%emt 0:00:57]} Nxf3 {[%emt 0:00:04]} 52. Rf2 {[%emt 0:00:24]} g4 {[%emt 0:00:35]} 53. Kf5 {[%emt 0:00:31]} Nh4+ {[%emt 0:01:02]} 54. Kxg4 {[%emt 0:00:06]} Ng6 {[%emt 0:00:02]} 55. Kg5 {[%emt 0:00:22]} Kg7 {[%emt 0:00:25]} 56. Re2 {[%emt 0:02:36]} Kf7 {[%emt 0:00:25]} 57. Rf2+ {[%emt 0:01:31]} Kg7 {[%emt 0:00:03]} 58. Ra2 {[%emt 0:00:30]} Kf7 {[%emt 0:00:23]} 59. Ra6 {[%emt 0:00:27]} Ne7 {[%emt 0:00:07]} 60. Rd6 {[%emt 0:00:22]} Nc8 {[%emt 0:00:52]} 61. Rh6 {[%emt 0:00:15]} Ne7 {[%emt 0:00:34]} 62. Kf4 {[%emt 0:00:57]} Ng6+ {[%emt 0:00:41]} 63. Kf5 {[%emt 0:00:16]} Ne7+ {[%emt 0:00:05]} 64. Kg5 {[%emt 0:00:31]} Ke8 {[%emt 0:00:31]} 65. Rh7 {[%emt 0:00:45]} Kd8 {[%emt 0:00:36]} 66. Kf6 {[%emt 0:00:20]} Nd5+ {[%emt 0:00:16]} 67. Ke6 {[%emt 0:00:17]} Nc7+ {[%emt 0:00:37]} 68. Kd6 {[%emt 0:00:28]} Ne8+ {[%emt 0:00:28]} 69. Kc6 {[%emt 0:00:20]} Nf6 {[%emt 0:00:10]} 70. Rg7 {[%emt 0:00:30]} Ke8 {[%emt 0:00:58]} 71. Kd6 {[%emt 0:00:41]} Kf8 {[%emt 0:00:25]} 72. Ra7 {[%emt 0:00:52]} Ne8+ {[%emt 0:00:26]} 73. Ke6 {[%emt 0:00:07]} Ng7+ {[%emt 0:00:02]} 74. Kf6 {[%emt 0:00:01]} Ne8+ {[%emt 0:00:24]} 75. Kg6 {[%emt 0:00:07]} Nd6 {[%emt 0:00:08]} 76. Rd7 {[%emt 0:01:10]} Ne8 {[%emt 0:01:07]} 77. Rf7+ {[%emt 0:01:38]} Kg8 {[%emt 0:00:04]} 78. Rf1 {[%emt 0:00:17]} Ng7 {[%emt 0:00:49]} 79. Rh1 {[%emt 0:02:34]} Ne8 {[%emt 0:01:37]} 1/2-1/2

[Event "Asian Amateur-ch Open 2022"]
[Site "Muscat"]
[Date "2022.10.02"]
[Round "5.14"]
[White "Srivatsan Karthikeyan"]
[Black "Shaurya Dinesh Sawlani"]
[Result "1-0"]
[ECO "B54"]
[WhiteElo "1711"]
[BlackElo "1448"]
[Annotator "NA RC COMBH"]
[PlyCount "107"]
[EventDate "2022.09.29"]
[EventType "swiss"]
[SourceTitle "playchess.com"]
[Source "ChessBase"]
[SourceQuality "1"]
[TimeControl "5400+30"]

1. e4 {[%emt 0:00:03]} c5 {[%emt 0:00:09]} 2. Nf3 {[%emt 0:00:03]} a6 {[%emt 0:00:12]} 3. c4 {[%emt 0:00:59]} d6 {[%emt 0:02:51]} 4. d4 {[%emt 0:01:26]} cxd4 {[%emt 0:01:36]} 5. Nxd4 {[%emt 0:00:07]} Nf6 {[%emt 0:01:43]} 6. Nc3 {[%emt 0:00:05]} e6 {[%emt 0:00:51]} 7. Be3 {[%emt 0:02:38]} Be7 {[%emt 0:00:27]} 8. Be2 {[%emt 0:00:06]} O-O {[%emt 0:00:45]} 9. O-O {[%emt 0:02:15]} Qc7 {[%emt 0:02:59]} 10. Qd2 {[%emt 0:02:21]} Nc6 {[%emt 0:01:57]} 11. Rac1 {[%emt 0:00:08]} Rd8 {[%emt 0:04:07]} 12. Nd5 {[%emt 0:11:24]} exd5 {[%emt 0:20:56]} 13. cxd5 {[%emt 0:00:24]} Qa5 {[%emt 0:01:49]} 14. Nxc6 {[%emt 0:04:03]} Qxd2 {[%emt 0:05:56]} 15. Nxe7+ {[%emt 0:02:06]} Kf8 {[%emt 0:00:25]} 16. Bxd2 {[%emt 0:00:05]} Kxe7 {[%emt 0:01:23]} 17. f3 {[%emt 0:01:51]} Bd7 {[%emt 0:01:12]} 18. Rc7 {[%emt 0:03:23]} b5 {[%emt 0:01:07]} 19. Rfc1 {[%emt 0:02:30]} a5 {[%emt 0:03:30]} 20. Bxb5 {[%emt 0:03:05]} Rdb8 {[%emt 0:00:42]} 21. Bc6 {[%emt 0:01:15]} Ra6 {[%emt 0:05:10]} 22. Bg5 {[%emt 0:00:38]} Rd8 {[%emt 0:02:59]} 23. Bxf6+ {[%emt 0:02:01]} gxf6 {[%emt 0:00:09]} 24. Kf2 {[%emt 0:00:21]} Rb6 {[%emt 0:00:57]} 25. b3 {[%emt 0:00:06]} Ra6 {[%emt 0:00:53]} 26. Ke3 {[%emt 0:01:05]} Ke8 {[%emt 0:04:47]} 27. Bxd7+ {[%emt 0:01:46]} Rxd7 {[%emt 0:00:07]} 28. Rxd7 {[%emt 0:00:02]} Kxd7 {[%emt 0:00:09]} 29. Rc4 {[%emt 0:00:03]} Ra8 {[%emt 0:00:57]} 30. Ra4 {[%emt 0:00:44]} f5 {[%emt 0:01:10]} 31. b4 {[%emt 0:00:38]} fxe4 {[%emt 0:00:22]} 32. fxe4 {[%emt 0:00:04]} Rb8 {[%emt 0:01:02]} 33. bxa5 {[%emt 0:00:25]} Ra8 {[%emt 0:00:32]} 34. a6 {[%emt 0:00:04]} Ra7 {[%emt 0:00:12]} 35. g4 {[%emt 0:00:09]} Kc7 {[%emt 0:00:06]} 36. g5 {[%emt 0:02:39]} Kb6 {[%emt 0:00:33]} 37. Rc4 {[%emt 0:00:04]} Kxa6 {[%emt 0:01:35]} 38. Ra4+ {[%emt 0:00:28]} Kb7 {[%emt 0:00:05]} 39. Rxa7+ {[%emt 0:00:03]} Kxa7 {[%emt 0:00:26]} 40. Kd4 {[%emt 0:00:07]} Kb7 {[%emt 0:00:10]} 41. e5 {[%emt 0:00:05]} Kc7 {[%emt 0:00:06]} 42. e6 {[%emt 0:00:40]} Kd8 {[%emt 0:00:13]} 43. exf7 {[%emt 0:00:06]} Ke7 {[%emt 0:00:05]} 44. a4 {[%emt 0:00:03]} Kxf7 {[%emt 0:00:05]} 45. a5 {[%emt 0:00:03]} Kg6 {[%emt 0:00:07]} 46. a6 {[%emt 0:00:03]} Kxg5 {[%emt 0:00:04]} 47. a7 {[%emt 0:00:04]} h5 {[%emt 0:00:06]} 48. a8=Q {[%emt 0:00:05]} Kh4 {[%emt 0:00:04]} 49. Qd8+ {[%emt 0:00:35]} Kh3 {[%emt 0:00:07]} 50. Qxd6 {[%emt 0:00:21]} h4 {[%emt 0:00:04]} 51. Qf4 {[%emt 0:00:11]} Kg2 {[%emt 0:00:05]} 52. Qxh4 {[%emt 0:00:03]} Kh1 {[%emt 0:00:08]} 53. Qg4 {[%emt 0:00:05]} Kxh2 {[%emt 0:00:07]} 54. Ke4 {[%emt 1:03:22]} 1-0

[Event "Asian Amateur-ch Open 2022"]
[Site "Muscat"]
[Date "2022.10.02"]
[Round "5.15"]
[White "Vijay Chauhan"]
[Black "Ranjith, R.k."]
[Result "1-0"]
[ECO "A81"]
[WhiteElo "1526"]
[BlackElo "1706"]
[Annotator "NA RC COMBH"]
[PlyCount "95"]
[EventDate "2022.09.29"]
[EventType "swiss"]
[SourceTitle "playchess.com"]
[Source "ChessBase"]
[SourceQuality "1"]
[TimeControl "5400+30"]

1. d4 {[%emt 0:00:14]} e6 {[%emt 0:00:20]} 2. Nf3 {[%emt 0:00:06]} f5 {[%emt 0:00:05]} 3. g3 {[%emt 0:00:18]} Nf6 {[%emt 0:00:03]} 4. Bg2 {[%emt 0:00:06]} d5 {[%emt 0:01:04]} 5. O-O {[%emt 0:00:37]} Bd6 {[%emt 0:00:02]} 6. b3 {[%emt 0:00:07]} Qe7 {[%emt 0:00:04]} 7. a4 {[%emt 0:01:43]} Nbd7 {[%emt 0:02:15]} 8. a5 {[%emt 0:03:03]} c6 {[%emt 0:00:49]} 9. Ba3 {[%emt 0:09:13]} Bxa3 {[%emt 0:01:12]} 10. Rxa3 {[%emt 0:01:07]} e5 {[%emt 0:00:43]} 11. dxe5 {[%emt 0:01:40]} Nxe5 {[%emt 0:00:02]} 12. Qd4 {[%emt 0:01:12]} Nxf3+ {[%emt 0:04:40]} 13. exf3 {[%emt 0:03:45]} c5 {[%emt 0:03:32]} 14. Qd2 {[%emt 0:01:45]} O-O {[%emt 0:00:08]} 15. Re1 {[%emt 0:00:49]} Be6 {[%emt 0:03:43]} 16. b4 {[%emt 0:05:45]} Rae8 {[%emt 0:00:47]} 17. Rae3 {[%emt 0:00:32]} Qd7 {[%emt 0:00:10]} 18. bxc5 {[%emt 0:03:57]} Bf7 {[%emt 0:00:02]} 19. Qb4 {[%emt 0:11:16]} Qc7 {[%emt 0:18:50]} 20. Rxe8 {[%emt 0:03:35]} Bxe8 {[%emt 0:07:53]} 21. Nd2 {[%emt 0:03:30]} f4 {[%emt 0:16:11]} 22. g4 {[%emt 0:03:30]} Bg6 {[%emt 0:22:28]} 23. Nb3 {[%emt 0:01:48]} Re8 {[%emt 0:05:46]} 24. Rxe8+ {[%emt 0:00:47]} Bxe8 {[%emt 0:03:32]} 25. Bf1 {[%emt 0:01:07]} g5 {[%emt 0:04:06]} 26. Nd4 {[%emt 0:04:28]} Kf7 {[%emt 0:00:02]} 27. Bd3 {[%emt 0:01:13]} Bc6 {[%emt 0:02:25]} 28. Bb5 {[%emt 0:05:56]} Bd7 {[%emt 0:02:07]} 29. Bd3 {[%emt 0:08:07]} Qe5 {[%emt 0:01:21]} 30. Qxb7 {[%emt 0:09:16]} Qxd4 {[%emt 0:00:02]} 31. c6 {[%emt 0:00:06]} Qa1+ {[%emt 0:00:57]} 32. Kg2 {[%emt 0:00:04]} Qxa5 {[%emt 0:00:05]} 33. cxd7 {[%emt 0:04:13]} Ke7 {[%emt 0:00:19]} 34. Qc8 {[%emt 0:01:16]} Nxd7 {[%emt 0:00:49]} 35. Qg8 {[%emt 0:00:44]} Qc5 {[%emt 0:00:53]} 36. Qxg5+ {[%emt 0:00:26]} Ke6 {[%emt 0:00:31]} 37. Qf5+ {[%emt 0:00:37]} Kd6 {[%emt 0:00:26]} 38. Qxf4+ {[%emt 0:00:08]} Kc6 {[%emt 0:00:01]} 39. Qa4+ {[%emt 0:00:25]} Kd6 {[%emt 0:00:09]} 40. Bf5 {[%emt 0:00:27]} Nf6 {[%emt 0:00:45]} 41. Qa6+ {[%emt 0:00:17]} Qb6 {[%emt 0:00:02]} 42. Qc8 {[%emt 0:01:26]} Ke5 {[%emt 0:00:21]} 43. Qc3+ {[%emt 0:00:38]} Kf4 {[%emt 0:00:58]} 44. h4 {[%emt 0:00:50]} h5 {[%emt 0:00:25]} 45. Qd2+ {[%emt 0:00:14]} Ke5 {[%emt 0:00:01]} 46. Kg3 {[%emt 0:01:37]} Qd4 {[%emt 0:00:38]} 47. f4+ {[%emt 0:00:58]} Qxf4+ {[%emt 0:01:03]} 48. Qxf4# {[%emt 0:00:05]} 1-0

[Event "Asian Amateur-ch Open 2022"]
[Site "Muscat"]
[Date "2022.10.02"]
[Round "5.16"]
[White "Velavaa Ragavesh"]
[Black "Atharv Bansal"]
[Result "1/2-1/2"]
[ECO "B22"]
[WhiteElo "1698"]
[BlackElo "1164"]
[Annotator "NA RC COMBH"]
[PlyCount "57"]
[EventDate "2022.09.29"]
[EventType "swiss"]
[SourceTitle "playchess.com"]
[Source "ChessBase"]
[SourceQuality "1"]
[TimeControl "5400+30"]

1. e4 {[%emt 0:00:10]} c5 {[%emt 0:00:33]} 2. Nf3 {[%emt 0:00:16]} e6 {[%emt 0:01:00]} 3. c3 {[%emt 0:01:43]} d5 {[%emt 0:01:01]} 4. Bb5+ {[%emt 0:00:49]} Bd7 {[%emt 0:02:03]} 5. Bxd7+ {[%emt 0:01:05]} Nxd7 {[%emt 0:03:04]} 6. exd5 {[%emt 0:01:07]} exd5 {[%emt 0:00:17]} 7. d4 {[%emt 0:00:44]} Ngf6 {[%emt 0:01:38]} 8. O-O {[%emt 0:01:49]} Be7 {[%emt 0:01:11]} 9. Bg5 {[%emt 0:01:40]} O-O {[%emt 0:00:32]} 10. Nbd2 {[%emt 0:02:03]} Ne4 {[%emt 0:04:24]} 11. Nxe4 {[%emt 0:06:08]} dxe4 {[%emt 0:01:11]} 12. Bxe7 {[%emt 0:03:33]} Qxe7 {[%emt 0:00:26]} 13. Re1 {[%emt 0:00:41]} Rfe8 {[%emt 1:19:40]} 14. Ne5 {[%emt 0:14:15]} Nxe5 {[%emt 0:00:00]} 15. Rxe4 {[%emt 0:00:43]} cxd4 {[%emt 0:00:00]} 16. cxd4 {[%emt 0:00:41]} Qf6 {[%emt 0:00:00]} 17. dxe5 {[%emt 0:00:57]} Rxe5 {[%emt 0:00:00]} 18. Rxe5 {[%emt 0:01:23]} Qxe5 {[%emt 0:00:00]} 19. Qb3 {[%emt 0:00:43]} b6 {[%emt 0:00:00]} 20. Rd1 {[%emt 0:02:10]} Re8 {[%emt 0:00:00]} 21. h3 {[%emt 0:00:57]} h6 {[%emt 0:00:00]} 22. Qa4 {[%emt 0:04:58]} Re7 {[%emt 0:00:00]} 23. Qc2 {[%emt 0:02:02]} g6 {[%emt 0:00:00]} 24. Rf1 {[%emt 0:05:03]} Kh7 {[%emt 0:00:00]} 25. a3 {[%emt 0:03:05]} Qc7 {[%emt 0:00:00]} 26. Qd3 {[%emt 0:02:24]} Rd7 {[%emt 0:00:00]} 27. Qe3 {[%emt 0:42:51]} Qc2 {[%emt 0:07:00]} 28. b4 {[%emt 0:00:30]} Qd3 {[%emt 0:00:30]} 29. Re1 {[%emt 0:00:30]} 1/2-1/2

[Event "Asian Amateur-ch Open 2022"]
[Site "Muscat"]
[Date "2022.10.02"]
[Round "5.17"]
[White "Shelke Omkar"]
[Black "Al Amri, Mohammed A"]
[Result "1-0"]
[ECO "A48"]
[WhiteElo "1460"]
[BlackElo "1693"]
[Annotator "NA RC COMBH"]
[PlyCount "107"]
[EventDate "2022.09.29"]
[EventType "swiss"]
[SourceTitle "playchess.com"]
[Source "ChessBase"]
[SourceQuality "1"]
[TimeControl "5400+30"]

1. d4 {[%emt 0:00:02]} c5 {[%emt 0:05:14]} 2. e3 {[%emt 0:02:50]} g6 {[%emt 0:00:19]} 3. Nf3 {[%emt 0:00:12]} Nf6 {[%emt 0:00:20]} 4. b3 {[%emt 0:00:10]} Bg7 {[%emt 0:00:05]} 5. Bb2 {[%emt 0:00:02]} d5 {[%emt 0:00:34]} 6. Bd3 {[%emt 0:00:13]} Nc6 {[%emt 0:00:07]} 7. a3 {[%emt 0:00:16]} cxd4 {[%emt 0:00:47]} 8. exd4 {[%emt 0:00:02]} Nh5 {[%emt 0:02:44]} 9. Qd2 {[%emt 0:06:04]} Qc7 {[%emt 0:03:56]} 10. O-O {[%emt 0:12:48]} O-O {[%emt 0:01:09]} 11. Re1 {[%emt 0:09:40]} a6 {[%emt 0:02:54]} 12. Ne5 {[%emt 0:05:26]} Nf6 {[%emt 0:07:56]} 13. Qe2 {[%emt 0:08:00]} e6 {[%emt 0:00:39]} 14. Nd2 {[%emt 0:01:29]} Qb6 {[%emt 0:06:45]} 15. Ndf3 {[%emt 0:05:17]} Nh5 {[%emt 0:01:14]} 16. Qe3 {[%emt 0:02:31]} Nf6 {[%emt 0:05:10]} 17. Nxc6 {[%emt 0:02:15]} bxc6 {[%emt 0:00:36]} 18. Ne5 {[%emt 0:01:11]} Nd7 {[%emt 0:00:30]} 19. f4 {[%emt 0:05:22]} f5 {[%emt 0:01:00]} 20. Nxd7 {[%emt 0:04:06]} Bxd7 {[%emt 0:00:14]} 21. Bf1 {[%emt 0:03:37]} Rae8 {[%emt 0:00:14]} 22. Rad1 {[%emt 0:01:02]} Qd8 {[%emt 0:01:29]} 23. Bxa6 {[%emt 0:03:59]} h6 {[%emt 0:00:13]} 24. Bf1 {[%emt 0:01:15]} g5 {[%emt 0:00:18]} 25. h3 {[%emt 0:01:38]} Qf6 {[%emt 0:00:46]} 26. b4 {[%emt 0:05:38]} Qg6 {[%emt 0:00:39]} 27. c4 {[%emt 0:01:08]} g4 {[%emt 0:01:19]} 28. hxg4 {[%emt 0:00:53]} Qxg4 {[%emt 0:01:35]} 29. Qf3 {[%emt 0:00:50]} Qxf3 {[%emt 0:01:08]} 30. gxf3 {[%emt 0:00:02]} Rb8 {[%emt 0:00:03]} 31. cxd5 {[%emt 0:03:19]} cxd5 {[%emt 0:02:47]} 32. Rc1 {[%emt 0:00:18]} Rfc8 {[%emt 0:00:09]} 33. Kf2 {[%emt 0:00:23]} Kf7 {[%emt 0:00:34]} 34. Ke3 {[%emt 0:15:32]} Ke7 35. Rxc8 {[%emt 0:00:00]} Rxc8 {[%emt 0:00:49]} 36. Rc1 {[%emt 0:00:00]} Rxc1 {[%emt 0:00:23]} 37. Bxc1 {[%emt 0:00:00]} Ba4 {[%emt 0:00:19]} 38. Ba6 {[%emt 0:00:00]} Kd8 {[%emt 0:01:15]} 39. Bd2 {[%emt 0:00:00]} Bf8 {[%emt 0:53:47]} 40. Kf2 {[%emt 0:00:00]} Be7 {[%emt 0:00:00]} 41. Ke3 {[%emt 0:00:00]} h5 {[%emt 0:00:00]} 42. Kf2 {[%emt 0:00:00]} Kc7 {[%emt 0:00:00]} 43. Kg2 {[%emt 0:00:00]} Bd1 {[%emt 0:00:00]} 44. Bb5 {[%emt 0:00:00]} h4 {[%emt 0:00:00]} 45. a4 {[%emt 0:00:00]} h3+ {[%emt 0:00:00]} 46. Kxh3 {[%emt 0:00:00]} Bxf3 {[%emt 0:00:00]} 47. Be8 {[%emt 0:00:00]} Kd8 {[%emt 0:00:00]} 48. Bc6 {[%emt 0:00:10]} Bd1 {[%emt 0:00:00]} 49. a5 {[%emt 0:01:01]} Kc7 {[%emt 0:00:00]} 50. b5 {[%emt 0:01:02]} Ba4 {[%emt 0:00:00]} 51. a6 {[%emt 0:00:45]} Kb6 {[%emt 0:00:00]} 52. Ba5+ {[%emt 0:00:21]} Ka7 {[%emt 0:00:00]} 53. Bc7 {[%emt 0:00:19]} Bf6 {[%emt 0:00:00]} 54. b6+ {[%emt 0:03:18]} 1-0

[Event "Asian Amateur-ch Open 2022"]
[Site "Muscat"]
[Date "2022.10.02"]
[Round "5.18"]
[White "Humaidan Mohamed, Alzaabi"]
[Black "Hisoriev, Shorahmat"]
[Result "1-0"]
[ECO "B23"]
[WhiteElo "1393"]
[BlackElo "1681"]
[Annotator "NA RC COMBH"]
[PlyCount "65"]
[EventDate "2022.09.29"]
[EventType "swiss"]
[SourceTitle "playchess.com"]
[Source "ChessBase"]
[SourceQuality "1"]
[TimeControl "5400+30"]

1. e4 {[%emt 0:00:02]} c5 {[%emt 0:00:24]} 2. Nc3 {[%emt 0:00:53]} Nc6 {[%emt 0:00:37]} 3. f4 {[%emt 0:01:08]} e5 {[%emt 0:00:38]} 4. f5 {[%emt 0:05:25]} Nf6 {[%emt 0:02:04]} 5. Nf3 {[%emt 0:00:10]} Be7 {[%emt 0:00:35]} 6. Bb5 {[%emt 0:01:20]} O-O {[%emt 1:29:12]} 7. O-O {[%emt 1:25:02]} a6 {[%emt 0:00:00]} 8. Bxc6 {[%emt 0:00:00]} dxc6 {[%emt 0:00:00]} 9. d3 {[%emt 0:00:00]} b5 {[%emt 0:00:00]} 10. Kh1 {[%emt 0:00:00]} Qc7 {[%emt 0:00:00]} 11. Qe1 {[%emt 0:00:00]} Bb7 {[%emt 0:00:00]} 12. Rg1 {[%emt 0:00:00]} Nd7 {[%emt 0:00:00]} 13. g4 {[%emt 0:00:00]} c4 {[%emt 0:00:00]} 14. g5 {[%emt 0:00:00]} Rfd8 {[%emt 0:00:00]} 15. f6 {[%emt 0:00:00]} Bf8 {[%emt 0:00:00]} 16. fxg7 {[%emt 0:00:00]} Bxg7 {[%emt 0:00:00]} 17. dxc4 {[%emt 0:00:00]} b4 {[%emt 0:00:00]} 18. Ne2 {[%emt 0:00:00]} c5 {[%emt 0:00:00]} 19. Ng3 {[%emt 0:00:00]} Qc6 {[%emt 0:00:00]} 20. Nh4 {[%emt 0:00:00]} Kh8 {[%emt 0:00:00]} 21. Qf2 {[%emt 0:00:00]} Qe6 {[%emt 0:00:00]} 22. Nhf5 {[%emt 0:00:00]} Rg8 {[%emt 0:00:00]} 23. Rd1 {[%emt 0:00:00]} Bf8 {[%emt 0:00:00]} 24. Be3 {[%emt 0:00:00]} Bc6 {[%emt 0:00:00]} 25. Rd3 {[%emt 0:00:00]} Qxc4 {[%emt 0:00:00]} 26. b3 {[%emt 0:00:00]} Qb5 {[%emt 0:00:00]} 27. Nh6 {[%emt 0:00:00]} Bxh6 {[%emt 0:00:00]} 28. gxh6 {[%emt 0:00:00]} f5 {[%emt 0:00:00]} 29. Qxf5 {[%emt 0:00:00]} Raf8 {[%emt 0:00:00]} 30. Qe6 {[%emt 0:00:00]} Qb7 {[%emt 0:00:00]} 31. Rxd7 {[%emt 0:00:00]} Qxd7 {[%emt 0:00:00]} 32. Qxe5+ {[%emt 0:00:00]} Rg7 {[%emt 0:00:00]} 33. hxg7+ {[%emt 0:00:00]} 1-0